bitfinex/quotes_BTCUSD_20241226
["timestamp","ask_amount","ask_price","bid_price","bid_amount"]
[1735238183982,0.00957625,95868.0,95855.0,0.09333353]
[1735238184188,0.208628,95864.0,95862.0,0.006]
[1735238184395,0.24026257,95863.0,95862.0,0.002]
[1735238184577,0.208644,95857.0,95856.0,0.09333353]
[1735238184787,0.32219855,95857.0,95856.0,0.09333353]
[1735238185383,0.32219855,95857.0,95840.0,0.09333353]
[1735238185588,0.32219855,95857.0,95841.0,0.208678]
[1735238185589,0.208655,95852.0,95841.0,0.208678]
[1735238185907,0.208646,95856.0,95841.0,0.08480807]
[1735238186479,0.208622,95867.0,95849.0,8.56e-05]
[1735238186604,0.00956823,95855.0,95851.0,0.208656]
[1735238186805,0.208632,95863.0,95851.0,0.208656]
[1735238187240,0.208635,95861.0,95851.0,0.208656]
[1735238187441,0.00956823,95862.0,95854.0,0.208648]
[1735238187670,0.208632,95863.0,95851.0,0.208656]
[1735238188073,0.00956823,95862.0,95851.0,0.208656]
[1735238188447,0.00956823,95862.0,95851.0,0.209656]
[1735238188848,0.00956823,95862.0,95851.0,0.213656]
[1735238189050,0.00956823,95862.0,95851.0,0.212656]
[1735238189993,0.00956823,95862.0,95851.0,0.208656]
[1735238190222,0.10398632,95861.0,95851.0,0.001]
[1735238190351,0.10398632,95861.0,95851.0,0.002]
[1735238190763,0.20865,95855.0,95851.0,0.002]
[1735238190982,0.20865,95855.0,95851.0,0.001]
[1735238191377,0.208652,95853.0,95851.0,0.002]
[1735238191592,0.208652,95853.0,95851.0,0.001]
[1735238191797,0.00956823,95852.0,95851.0,0.001]
[1735238191998,0.00956823,95852.0,95849.0,8.56e-05]
[1735238192233,0.31264332,95851.0,95849.0,8.56e-05]
[1735238192436,0.0809,95850.0,95849.0,8.56e-05]
[1735238192643,0.18488632,95850.0,95849.0,8.56e-05]
[1735238192822,0.19445455,95850.0,95849.0,8.56e-05]
[1735238193036,0.36745455,95850.0,95849.0,8.56e-05]
[1735238193246,0.56480961,95850.0,95849.0,8.56e-05]
[1735238193448,0.66480961,95850.0,95849.0,8.56e-05]
[1735238193640,0.66580961,95850.0,95849.0,8.56e-05]
[1735238193859,0.66480961,95850.0,95849.0,8.56e-05]
[1735238194189,0.66880961,95850.0,95849.0,8.56e-05]
[1735238194397,0.208721,95822.0,95810.0,0.208746]
[1735238194643,0.208721,95822.0,95810.0,0.20926366]
[1735238194861,0.00941894,95821.0,95810.0,0.20926366]
[1735238195060,0.208721,95822.0,95810.0,0.20926366]
[1735238195807,0.208721,95822.0,95810.0,0.00051766]
[1735238196149,0.208674,95843.0,95810.0,0.00051766]
[1735238196150,0.00941894,95821.0,95816.0,0.208731]
[1735238196357,0.208704,95830.0,95816.0,0.208731]
[1735238196564,0.00941894,95829.0,95816.0,0.208731]
[1735238196760,0.00941894,95829.0,95810.0,0.00851766]
[1735238197013,0.20868,95841.0,95811.0,0.00104354]
[1735238197136,0.20868,95841.0,95810.0,0.00851766]
[1735238197137,0.208683,95839.0,95825.0,0.208713]
[1735238197337,0.417375,95837.0,95810.0,0.00051766]
[1735238197567,0.10398632,95838.0,95821.0,0.20872]
[1735238197769,0.00941894,95837.0,95821.0,0.20872]
[1735238197964,0.208689,95836.0,95825.0,0.208712]
[1735238198301,0.05307743,95835.0,95825.0,0.208712]
[1735238198504,0.06249637,95835.0,95825.0,0.208712]
[1735238198884,0.208694,95834.0,95825.0,0.208712]
[1735238199612,0.00941894,95833.0,95825.0,0.208712]
[1735238199833,0.00941894,95833.0,95821.0,0.002]
[1735238200030,0.00941894,95833.0,95829.0,0.208704]
[1735238200331,0.208683,95840.0,95829.0,0.208704]
[1735238200506,0.001,95834.0,95829.0,0.208704]
[1735238201095,0.001,95833.0,95829.0,0.208704]
[1735238201291,0.00941894,95833.0,95822.0,0.20872]
[1735238201615,0.208698,95832.0,95822.0,0.20872]
[1735238201788,0.208698,95832.0,95829.0,0.004]
[1735238201994,0.25971458,95832.0,95829.0,0.004]
[1735238202195,0.00927848,95832.0,95829.0,0.004]
[1735238202428,0.208694,95834.0,95829.0,0.004]
[1735238202635,0.00927684,95831.0,95829.0,0.012]
[1735238202817,0.209694,95834.0,95829.0,0.012]
[1735238203066,0.00927684,95830.0,95826.0,0.208711]
[1735238203271,0.001,95832.0,95829.0,0.008]
[1735238203473,0.208693,95835.0,95822.0,0.004]
[1735238203474,0.12495562,95831.0,95822.0,0.004]
[1735238203705,0.208718,95823.0,95822.0,0.004]
[1735238204077,0.208718,95823.0,95813.0,0.09357672]
[1735238204078,0.208737,95815.0,95813.0,0.09357672]
[1735238204224,0.31272332,95815.0,95813.0,0.09357672]
[1735238204603,0.046,95824.0,95813.0,0.09357672]
[1735238204604,0.20872,95822.0,95813.0,0.08957672]
[1735238204835,0.00926472,95814.0,95810.0,0.00060326]
[1735238205007,0.208724,95820.0,95810.0,0.00060326]
[1735238205565,0.00926472,95819.0,95810.0,0.00060326]
[1735238205768,0.31271532,95818.0,95810.0,0.00060326]
[1735238205918,0.208731,95817.0,95810.0,0.00060326]
[1735238206120,0.10398632,95816.0,95810.0,0.00060326]
[1735238206319,0.11325104,95816.0,95810.0,0.00060326]
[1735238206691,0.208737,95814.0,95810.0,0.00660326]
[1735238206892,0.208737,95814.0,95810.0,0.00060326]
[1735238207203,0.208742,95812.0,95810.0,0.00060326]
[1735238207416,0.208742,95812.0,95810.0,0.00860326]
[1735238207595,0.00926472,95811.0,95810.0,0.00360326]
[1735238207996,0.00926472,95811.0,95810.0,0.00060326]
[1735238208216,0.00926472,95811.0,95810.0,0.00160326]
[1735238209032,0.00926472,95811.0,95810.0,0.00760326]
[1735238209205,0.00926472,95811.0,95810.0,0.00160326]
[1735238209409,0.417492,95810.0,95797.0,0.20637626]
[1735238209634,0.001,95811.0,95810.0,0.007]
[1735238209910,0.33470332,95811.0,95810.0,0.007]
[1735238210084,0.45940332,95811.0,95810.0,0.0070856]
[1735238210284,0.45840332,95811.0,95810.0,8.56e-05]
[1735238210440,0.60840332,95811.0,95810.0,0.0040856]
[1735238211027,0.60840332,95811.0,95810.0,8.56e-05]
[1735238211187,0.63140332,95811.0,95810.0,8.56e-05]
[1735238211893,0.58743032,95811.0,95810.0,8.56e-05]
[1735238212678,0.58943032,95811.0,95810.0,8.56e-05]
[1735238213116,0.58743032,95811.0,95810.0,8.56e-05]
[1735238213473,0.46273032,95811.0,95810.0,8.56e-05]
[1735238213674,0.46473032,95811.0,95810.0,8.56e-05]
[1735238213883,0.55296747,95811.0,95810.0,0.0020856]
[1735238214086,0.55096747,95811.0,95810.0,8.56e-05]
[1735238214301,0.15,95810.0,95788.0,0.20803277]
[1735238214497,0.208771,95799.0,95788.0,0.20803277]
[1735238214722,0.20878,95795.0,95783.0,0.208804]
[1735238214963,0.00912994,95794.0,95779.0,0.208813]
[1735238215207,0.208785,95793.0,95779.0,0.20896824]
[1735238215411,0.00912994,95792.0,95779.0,0.20896824]
[1735238215728,0.00912994,95792.0,95783.0,0.208805]
[1735238215957,0.20876,95804.0,95784.0,0.208803]
[1735238216157,0.208763,95802.0,95789.0,0.208791]
[1735238216358,0.10398632,95801.0,95789.0,0.208791]
[1735238216640,0.001,95792.0,95789.0,0.208791]
[1735238216876,0.00912994,95800.0,95789.0,0.208791]
[1735238217082,0.20877,95799.0,95785.0,0.208799]
[1735238217443,0.26763847,95798.0,95789.0,0.008]
[1735238217672,0.26763847,95798.0,95789.0,0.003]
[1735238217849,0.26763847,95798.0,95785.0,0.208799]
[1735238218057,0.00912994,95797.0,95785.0,0.208799]
[1735238218254,0.00912994,95797.0,95785.0,0.211799]
[1735238218457,0.06808241,95797.0,95789.0,0.208791]
[1735238218662,0.06808241,95797.0,95794.0,0.29048]
[1735238218663,0.00912994,95797.0,95794.0,0.29048]
[1735238218840,0.00912994,95797.0,95796.0,0.208776]
[1735238219014,0.208727,95819.0,95810.0,0.208745]
[1735238219216,0.0090404,95815.0,95794.0,0.0817]
[1735238219429,0.2087,95832.0,95800.0,0.09137804]
[1735238219798,0.208723,95821.0,95808.0,0.208748]
[1735238220181,0.0090404,95815.0,95808.0,0.208748]
[1735238220400,0.0090404,95815.0,95804.0,0.208758]
[1735238220540,0.208735,95815.0,95794.0,0.0817]
[1735238220892,0.00907344,95814.0,95804.0,0.208759]
[1735238221343,0.208735,95815.0,95804.0,0.208759]
[1735238221558,0.00068822,95816.0,95804.0,0.211759]
[1735238221770,0.00907344,95814.0,95805.0,0.208757]
[1735238221975,0.00068822,95816.0,95805.0,0.208757]
[1735238222171,0.00907344,95813.0,95805.0,0.208757]
[1735238222425,0.00068822,95816.0,95809.0,0.208747]
[1735238222821,0.00068822,95816.0,95810.0,0.208746]
[1735238223225,0.00907344,95815.0,95810.0,0.208746]
[1735238223516,0.00068822,95816.0,95810.0,0.208746]
[1735238223740,0.02262904,95816.0,95810.0,0.208746]
[1735238223963,0.00068822,95816.0,95809.0,0.208746]
[1735238224186,0.00068822,95816.0,95804.0,0.002]
[1735238224187,0.00907344,95815.0,95804.0,0.0020856]
[1735238224384,0.00907344,95815.0,95794.0,0.0817]
[1735238224385,0.208757,95805.0,95794.0,0.2068666]
[1735238224607,0.208751,95808.0,95794.0,0.2068666]
[1735238224811,0.00907344,95807.0,95794.0,0.2068666]
[1735238225056,0.00907344,95807.0,95795.0,0.00104385]
[1735238225267,0.00907344,95807.0,95791.0,0.00104373]
[1735238225476,0.00068822,95816.0,95795.0,0.208777]
[1735238225621,0.208746,95810.0,95799.0,0.208769]
[1735238225824,0.00907344,95809.0,95799.0,0.208769]
[1735238226021,0.20875,95808.0,95796.0,0.208776]
[1735238226366,0.208739,95814.0,95800.0,0.208766]
[1735238226573,0.01807344,95807.0,95800.0,0.208766]
[1735238226777,0.00907344,95807.0,95800.0,0.208766]
[1735238227185,0.009,95808.0,95800.0,0.208667]
[1735238227393,0.00907344,95806.0,95800.0,0.208667]
[1735238227590,0.009,95808.0,95800.0,0.208667]
[1735238227591,0.00907344,95805.0,95800.0,0.208667]
[1735238227800,0.009,95808.0,95796.0,0.002]
[1735238227801,0.217751,95808.0,95796.0,0.001]
[1735238228009,0.00907344,95807.0,95797.0,0.208774]
[1735238228206,0.00907344,95807.0,95800.0,0.003]
[1735238228414,0.10398632,95813.0,95800.0,0.003]
[1735238228615,0.24137804,95840.0,95800.0,0.003]
[1735238228616,0.00907344,95812.0,95801.0,0.00104383]
[1735238228831,0.001,95807.0,95806.0,0.208755]
[1735238229038,0.208679,95841.0,95815.0,0.208735]
[1735238229242,0.20869,95836.0,95815.0,0.208735]
[1735238229653,0.208699,95832.0,95815.0,0.208735]
[1735238229859,0.20869,95836.0,95815.0,0.208735]
[1735238230063,0.078,95851.0,95815.0,0.208735]
[1735238230064,0.20867,95845.0,95815.0,0.208735]
[1735238230499,0.208658,95851.0,95815.0,0.38862132]
[1735238231081,0.208658,95851.0,95815.0,0.39062132]
[1735238231606,0.208658,95851.0,95815.0,0.38862132]
[1735238231783,0.00968822,95816.0,95815.0,0.81955611]
[1735238231981,0.00867504,95816.0,95815.0,0.82355611]
[1735238232185,0.00867504,95816.0,95815.0,0.81955611]
[1735238232541,0.00867504,95816.0,95815.0,0.82055611]
[1735238233099,0.208674,95843.0,95815.0,0.82055611]
[1735238233100,0.208674,95843.0,95815.0,0.61082111]
[1735238233301,0.20882902,95843.0,95829.0,0.208702]
[1735238233477,0.20882902,95843.0,95833.0,0.208695]
[1735238233478,0.00778172,95842.0,95833.0,0.208695]
[1735238233887,0.00015502,95843.0,95830.0,0.208702]
[1735238234226,0.00915502,95843.0,95830.0,0.208702]
[1735238234405,0.00778172,95842.0,95830.0,0.208702]
[1735238234579,0.208678,95841.0,95830.0,0.208702]
[1735238235104,0.00778172,95840.0,95833.0,0.006]
[1735238235428,0.00778172,95840.0,95830.0,0.210702]
[1735238235586,0.00778172,95840.0,95830.0,0.008]
[1735238235792,0.00015502,95843.0,95830.0,0.008]
[1735238235993,0.00778172,95842.0,95832.0,0.208697]
[1735238236225,0.001,95840.0,95835.0,0.20869]
[1735238236598,0.00778172,95839.0,95835.0,0.20869]
[1735238236796,0.00015502,95843.0,95835.0,0.20869]
[1735238236997,0.00778172,95842.0,95835.0,0.20869]
[1735238237200,0.21645772,95842.0,95832.0,0.208697]
[1735238237751,0.10398632,95841.0,95823.0,0.09346132]
[1735238237951,0.208689,95836.0,95835.0,0.002]
[1735238238151,0.31267532,95836.0,95835.0,0.002]
[1735238238384,0.52915374,95836.0,95835.0,0.002]
[1735238238585,0.2087,95831.0,95830.0,0.006]
[1735238238794,0.208713,95825.0,95824.0,0.09346132]
[1735238238942,0.31269932,95825.0,95824.0,0.09346132]
[1735238239123,0.32045646,95825.0,95824.0,0.09346132]
[1735238239327,0.32045646,95825.0,95824.0,0.08946132]
[1735238239750,0.32045646,95825.0,95809.0,0.08946132]
[1735238240002,0.1441705,95824.0,95809.0,0.08946132]
[1735238240210,0.208739,95813.0,95809.0,0.08946132]
[1735238240404,0.208734,95816.0,95809.0,0.08946132]
[1735238240640,0.00775665,95815.0,95809.0,0.08946132]
[1735238240923,0.00775665,95815.0,95802.0,0.208761]
[1735238241123,0.208737,95814.0,95802.0,0.208761]
[1735238241543,0.00775665,95813.0,95809.0,0.002]
[1735238241754,0.00775665,95813.0,95809.0,0.006]
[1735238241960,0.208713,95826.0,95809.0,0.006]
[1735238242169,0.076,95846.0,95810.0,0.19640805]
[1735238242302,0.001,95814.0,95811.0,0.208744]
[1735238242546,0.15,95840.0,95828.0,0.208706]
[1735238242547,0.208683,95839.0,95828.0,0.208706]
[1735238242749,0.06713483,95838.0,95828.0,0.208706]
[1735238243133,0.208698,95833.0,95823.0,0.208717]
[1735238243316,0.208679,95841.0,95827.0,0.208708]
[1735238243616,0.208681,95840.0,95827.0,0.208708]
[1735238243829,0.417362,95840.0,95827.0,0.208708]
[1735238244043,0.20869,95836.0,95825.0,0.208712]
[1735238244419,0.0417371,95835.0,95816.0,0.208732]
[1735238244619,0.10398632,95835.0,95816.0,0.208732]
[1735238244824,0.208708,95828.0,95816.0,0.208732]
[1735238245201,0.00775043,95827.0,95816.0,0.208732]
[1735238245633,0.00775043,95827.0,95820.0,0.208722]
[1735238245829,0.208696,95833.0,95820.0,0.208722]
[1735238246053,0.208704,95830.0,95820.0,0.208722]
[1735238246496,0.00775043,95829.0,95820.0,0.208722]
[1735238246923,0.00775043,95829.0,95816.0,0.210732]
[1735238246924,0.00775043,95829.0,95816.0,0.002]
[1735238247108,0.417382,95836.0,95822.0,0.20872]
[1735238247540,0.208694,95834.0,95822.0,0.20872]
[1735238247899,0.208684,95839.0,95816.0,0.209732]
[1735238248107,0.00775043,95833.0,95816.0,0.208732]
[1735238248290,0.208692,95835.0,95823.0,0.208717]
[1735238248736,0.00775043,95834.0,95823.0,0.208717]
[1735238249353,0.208696,95833.0,95823.0,0.208717]
[1735238249870,0.00775043,95832.0,95823.0,0.210717]
[1735238250281,0.00775043,95832.0,95824.0,0.208715]
[1735238250694,0.208693,95835.0,95824.0,0.208715]
[1735238250824,0.00775043,95831.0,95824.0,0.208715]
[1735238251031,0.208693,95835.0,95824.0,0.208715]
[1735238251238,0.00775043,95834.0,95824.0,0.208715]
[1735238251659,0.00775043,95834.0,95824.0,0.210715]
[1735238251867,0.00775043,95834.0,95830.0,0.417402]
[1735238252060,0.00775043,95834.0,95825.0,0.0774]
[1735238252365,0.0001712,95840.0,95836.0,0.208688]
[1735238252771,0.0001712,95840.0,95837.0,0.00104337]
[1735238252979,0.0001712,95840.0,95838.0,0.208685]
[1735238253614,0.0003262,95840.0,95838.0,0.208685]
[1735238254920,0.0003262,95840.0,95838.0,0.217685]
[1735238255176,0.0013262,95840.0,95838.0,0.217685]
[1735238255424,0.0003262,95840.0,95838.0,0.208685]
[1735238255664,0.0003262,95840.0,95838.0,0.213685]
[1735238256309,0.0013262,95840.0,95838.0,0.222685]
[1735238257424,0.0013262,95840.0,95838.0,0.217685]
[1735238257666,0.0013262,95840.0,95838.0,0.222685]
[1735238258674,0.0013262,95840.0,95838.0,0.014]
[1735238259247,0.0013262,95840.0,95839.0,0.208683]
[1735238261156,0.0013262,95840.0,95839.0,0.213683]
[1735238261372,0.0003262,95840.0,95839.0,0.213683]
[1735238261580,0.0013262,95840.0,95839.0,0.222683]
[1735238262546,0.0003262,95840.0,95839.0,0.208683]
[1735238262785,0.0013262,95840.0,95839.0,0.217683]
[1735238263731,0.0013262,95840.0,95839.0,0.014]
[1735238264154,0.04319352,95840.0,95839.0,0.014]
[1735238264351,0.05110365,95840.0,95839.0,0.01]
[1735238264561,0.00923633,95840.0,95839.0,0.005]
[1735238265007,0.00823633,95840.0,95839.0,0.001]
[1735238265234,0.01123633,95840.0,95839.0,0.001]
[1735238265445,0.417366,95839.0,95824.0,8.56e-05]
[1735238265645,0.208683,95839.0,95824.0,8.56e-05]
[1735238266077,0.21659513,95838.0,95824.0,8.56e-05]
[1735238266347,0.00791013,95838.0,95824.0,8.56e-05]
[1735238266727,0.208687,95837.0,95825.0,0.208713]
[1735238267155,0.00791013,95836.0,95825.0,0.208713]
[1735238267943,0.208692,95835.0,95824.0,8.56e-05]
[1735238268148,0.208692,95835.0,95825.0,0.001]
[1735238268696,0.00791013,95834.0,95825.0,0.002]
[1735238268924,0.00791013,95834.0,95825.0,0.001]
[1735238270049,0.00791013,95834.0,95824.0,8.56e-05]
[1735238270275,0.00791013,95834.0,95825.0,0.208713]
[1735238270502,0.00791013,95834.0,95828.0,0.208705]
[1735238270930,0.2090072,95840.0,95828.0,0.208705]
[1735238271134,0.00786611,95833.0,95828.0,0.208705]
[1735238271349,0.2090072,95840.0,95828.0,0.208705]
[1735238271573,0.00786611,95839.0,95829.0,0.10502983]
[1735238271791,0.0003262,95840.0,95830.0,0.00104332]
[1735238272614,0.0013262,95840.0,95838.0,0.208685]
[1735238273017,0.0013262,95840.0,95839.0,0.00104331]
[1735238274170,0.0013262,95840.0,95838.0,0.208685]
[1735238274377,0.000171,95839.0,95838.0,0.204685]
[1735238274993,0.000171,95839.0,95838.0,0.29829175]
[1735238275585,0.001171,95839.0,95838.0,0.40927807]
[1735238275802,0.001171,95839.0,95838.0,0.41227807]
[1735238276402,0.000171,95839.0,95838.0,0.40527807]
[1735238276604,0.001171,95839.0,95838.0,0.66576558]
[1735238276943,0.001171,95839.0,95838.0,0.66276558]
[1735238277145,0.001171,95839.0,95838.0,0.66576558]
[1735238277596,0.001171,95839.0,95838.0,0.56177926]
[1735238279073,0.001171,95839.0,95838.0,0.57230746]
[1735238280078,0.001171,95839.0,95838.0,0.67629378]
[1735238280694,0.001171,95839.0,95838.0,0.56177926]
[1735238281124,0.001171,95839.0,95838.0,0.66576558]
[1735238281325,0.0001712,95862.0,95839.0,0.0792]
[1735238281527,0.0001712,95862.0,95854.0,0.208648]
[1735238281718,0.00795895,95861.0,95854.0,0.208648]
[1735238281884,0.0001712,95862.0,95855.0,0.208648]
[1735238282309,0.0001712,95862.0,95859.0,0.208639]
[1735238282566,0.0001712,95862.0,95860.0,0.0417285]
[1735238282787,0.0001712,95862.0,95856.0,0.208646]
[1735238283173,0.00795895,95861.0,95856.0,0.208646]
[1735238283370,0.00795895,95861.0,95860.0,0.208637]
[1735238283537,0.0001712,95862.0,95860.0,0.208637]
[1735238283747,0.0011712,95862.0,95860.0,0.208637]
[1735238284298,0.0031712,95862.0,95857.0,0.208644]
[1735238284698,0.001,95861.0,95857.0,0.208644]
[1735238284899,0.001,95861.0,95860.0,0.005]
[1735238285228,0.0001712,95862.0,95861.0,0.208635]
[1735238285486,0.0001712,95862.0,95861.0,0.4552353]
[1735238285661,0.0001712,95862.0,95861.0,0.6052353]
[1735238285864,0.0001712,95862.0,95861.0,0.7533353]
[1735238286079,0.0001712,95862.0,95861.0,0.7763353]
[1735238286280,0.0001712,95862.0,95861.0,0.8763353]
[1735238286481,0.0001712,95862.0,95861.0,0.89685068]
[1735238287295,0.0001712,95862.0,95861.0,1.24229799]
[1735238287458,0.0001712,95862.0,95861.0,0.95588401]
[1735238287667,0.0001712,95862.0,95861.0,0.55708231]
[1735238287863,0.0001712,95862.0,95861.0,0.56108231]
[1735238288067,0.0001712,95862.0,95861.0,0.34944731]
[1735238288311,0.0001712,95862.0,95861.0,0.35044731]
[1735238288520,0.0001712,95862.0,95861.0,0.34644731]
[1735238288712,0.0021712,95862.0,95861.0,0.34644731]
[1735238288866,0.0021712,95862.0,95861.0,0.34744731]
[1735238289317,0.01032671,95862.0,95861.0,0.001]
[1735238289532,0.2108042,95862.0,95861.0,0.001]
[1735238289769,0.21892265,95862.0,95861.0,0.001]
[1735238290141,0.21692265,95862.0,95856.0,0.09358579]
[1735238290589,0.21692265,95862.0,95861.0,0.003]
[1735238290784,0.00828965,95862.0,95861.0,0.011]
[1735238290987,0.00828965,95862.0,95858.0,0.208641]
[1735238291143,0.0001712,95862.0,95858.0,0.208641]
[1735238291518,0.0001712,95862.0,95860.0,0.208637]
[1735238291644,0.0001712,95862.0,95861.0,0.00104305]
[1735238292404,0.0001712,95862.0,95860.0,0.208637]
[1735238293998,0.0001712,95862.0,95861.0,0.008]
[1735238294166,0.0001712,95862.0,95861.0,0.012]
[1735238294373,0.0001712,95862.0,95861.0,0.004]
[1735238294779,0.0001712,95862.0,95860.0,0.208637]
[1735238294956,0.0001712,95862.0,95860.0,0.212637]
[1735238295162,0.0001712,95862.0,95861.0,0.008]
[1735238295981,0.0001712,95862.0,95861.0,0.012]
[1735238297724,0.0001712,95862.0,95861.0,0.0757926]
[1735238297929,0.0001712,95862.0,95861.0,0.24132937]
[1735238298116,0.0001712,95862.0,95861.0,0.24028632]
[1735238298459,0.0001712,95862.0,95861.0,0.012]
[1735238299227,0.0001712,95862.0,95861.0,0.56521848]
[1735238299438,0.0001718,95870.0,95861.0,0.54465294]
[1735238299593,0.0080512,95862.0,95861.0,0.54465294]
[1735238299797,0.0080512,95862.0,95861.0,0.012]
[1735238300017,0.417254,95865.0,95861.0,0.012]
[1735238300217,0.0080512,95862.0,95861.0,0.012]
[1735238300621,0.208627,95865.0,95861.0,0.008]
[1735238300821,0.0080512,95862.0,95861.0,0.01]
[1735238301138,0.20862,95868.0,95861.0,0.002]
[1735238301347,0.0080512,95862.0,95861.0,0.004]
[1735238301549,0.20862,95868.0,95859.0,0.208639]
[1735238301761,0.00032688,95870.0,95866.0,0.208623]
[1735238301887,0.0080512,95867.0,95866.0,0.208623]
[1735238302090,0.00032688,95870.0,95866.0,0.208623]
[1735238302960,0.00032688,95870.0,95853.0,0.20865]
[1735238303161,0.208618,95869.0,95853.0,0.417301]
[1735238303301,0.208618,95869.0,95856.0,0.208644]
[1735238303501,0.0080512,95868.0,95861.0,0.004]
[1735238303840,0.0080512,95868.0,95859.0,0.001]
[1735238304216,0.0080512,95868.0,95856.0,0.208644]
[1735238304631,0.0080512,95868.0,95861.0,0.005]
[1735238305029,0.0080512,95868.0,95861.0,0.001]
[1735238305235,0.0080512,95868.0,95860.0,0.02058352]
[1735238306561,0.00032688,95870.0,95860.0,0.02058352]
[1735238306878,0.0080512,95869.0,95860.0,0.02058352]
[1735238307077,0.00032688,95870.0,95860.0,0.02058352]
[1735238307414,0.0080512,95868.0,95861.0,0.003]
[1735238307619,0.00032688,95870.0,95865.0,0.208626]
[1735238308457,0.0080512,95869.0,95865.0,0.208626]
[1735238309134,0.000171,95868.0,95865.0,0.208626]
[1735238310402,0.000171,95868.0,95865.0,0.209626]
[1735238310754,0.000171,95868.0,95865.0,0.208626]
[1735238311132,0.000171,95868.0,95865.0,0.209626]
[1735238311338,0.000171,95868.0,95865.0,0.001]
[1735238311677,0.0080512,95867.0,95865.0,0.004]
[1735238311817,0.0080512,95867.0,95865.0,0.001]
[1735238312994,8.064e-05,95868.0,95865.0,0.001]
[1735238313434,0.0080512,95867.0,95862.0,0.208631]
[1735238313609,0.0080512,95867.0,95865.0,0.003]
[1735238313810,0.0080512,95867.0,95865.0,0.005]
[1735238314315,0.0080512,95867.0,95865.0,0.003]
[1735238314466,0.0080512,95867.0,95855.0,0.30223254]
[1735238314467,0.208631,95863.0,95855.0,0.09358554]
[1735238314670,0.00805437,95866.0,95855.0,0.09358554]
[1735238315051,0.208624,95866.0,95865.0,0.004]
[1735238315258,0.43881032,95866.0,95865.0,0.004]
[1735238315713,0.58881032,95866.0,95865.0,0.004]
[1735238315886,0.20865,95854.0,95853.0,0.09358554]
[1735238316038,0.31263632,95854.0,95853.0,0.09358554]
[1735238316245,0.39083632,95854.0,95853.0,0.09358554]
[1735238317105,0.208676,95842.0,95840.0,8.55e-05]
[1735238317680,0.20867,95845.0,95840.0,8.55e-05]
[1735238318020,0.208628,95864.0,95852.0,0.208653]
[1735238318238,0.208628,95864.0,95846.0,0.0812]
[1735238318239,0.001,95854.0,95846.0,0.0812]
[1735238318447,0.001,95854.0,95840.0,0.0040855]
[1735238318448,0.10498632,95854.0,95840.0,0.0040855]
[1735238318588,0.208652,95853.0,95840.0,8.55e-05]
[1735238319134,0.208652,95853.0,95843.0,0.09358554]
[1735238319883,0.20867,95846.0,95840.0,0.0040855]
[1735238320079,0.20867,95846.0,95840.0,0.0010855]
[1735238320552,0.20867,95846.0,95840.0,8.55e-05]
[1735238320553,0.00797897,95845.0,95840.0,8.55e-05]
[1735238321057,0.00797897,95845.0,95843.0,8.55e-05]
[1735238322218,0.208672,95844.0,95843.0,8.55e-05]
[1735238322419,0.208665,95848.0,95843.0,8.55e-05]
[1735238322864,0.00797897,95847.0,95843.0,8.55e-05]
[1735238323277,0.208647,95856.0,95844.0,0.208671]
[1735238323488,0.00797897,95846.0,95844.0,0.208671]
[1735238323694,0.208647,95856.0,95844.0,0.208671]
[1735238323866,0.00797897,95845.0,95844.0,0.208671]
[1735238324074,0.417294,95856.0,95844.0,0.208671]
[1735238324267,0.00797897,95845.0,95844.0,0.208671]
[1735238324614,0.417294,95856.0,95844.0,0.208671]
[1735238324809,0.417294,95856.0,95844.0,0.211671]
[1735238325012,0.20865,95854.0,95844.0,0.211671]
[1735238325168,0.00797897,95855.0,95844.0,0.211671]
[1735238325370,0.208647,95856.0,95844.0,0.211671]
[1735238325599,0.00797897,95854.0,95844.0,0.208671]
[1735238325838,0.208647,95856.0,95844.0,0.208671]
[1735238326010,0.21663297,95853.0,95843.0,8.55e-05]
[1735238326234,0.208654,95853.0,95843.0,8.55e-05]
[1735238326437,0.208657,95851.0,95844.0,0.002]
[1735238326791,0.208666,95847.0,95844.0,0.002]
[1735238326995,0.208666,95847.0,95843.0,8.55e-05]
[1735238327196,0.10398632,95846.0,95843.0,8.55e-05]
[1735238327423,0.0777,95844.0,95843.0,8.55e-05]
[1735238327632,0.08562009,95844.0,95843.0,8.55e-05]
[1735238328010,0.08562009,95844.0,95843.0,0.0010855]
[1735238328436,0.27116655,95844.0,95843.0,0.0010855]
[1735238328638,0.18960641,95844.0,95843.0,0.0030855]
[1735238329018,0.3500448,95844.0,95843.0,0.0030855]
[1735238329460,0.3500448,95844.0,95829.0,0.09275654]
[1735238329461,0.208702,95830.0,95829.0,0.09275654]
[1735238329658,0.31268832,95830.0,95829.0,0.09275654]
[1735238329972,0.32058548,95830.0,95829.0,0.09275654]
[1735238330167,0.32058548,95830.0,95824.0,0.18725718]
[1735238330168,0.208713,95826.0,95824.0,8.56e-05]
[1735238330843,0.00789716,95825.0,95824.0,0.0002406]
[1735238331250,0.06082701,95825.0,95824.0,0.0002406]
[1735238331457,0.00789716,95825.0,95824.0,0.0032406]
[1735238331659,0.00789716,95825.0,95824.0,0.0042406]
[1735238332096,0.208702,95830.0,95824.0,0.0042406]
[1735238332297,0.00789716,95825.0,95824.0,0.0042406]
[1735238332430,0.208702,95830.0,95824.0,0.0042406]
[1735238332854,0.00789716,95829.0,95824.0,0.0042406]
[1735238333057,0.208696,95833.0,95824.0,0.0042406]
[1735238333258,0.00789716,95828.0,95824.0,0.0042406]
[1735238333460,0.208696,95833.0,95824.0,0.0032406]
[1735238333638,0.208705,95829.0,95824.0,0.0002406]
[1735238333818,0.208705,95829.0,95824.0,0.0042406]
[1735238334025,0.208709,95827.0,95824.0,0.0042406]
[1735238334388,0.10398632,95826.0,95807.0,0.13670452]
[1735238334601,0.10398632,95826.0,95824.0,0.001]
[1735238334602,0.208713,95825.0,95824.0,0.001]
[1735238334795,0.208724,95821.0,95808.0,0.20875]
[1735238335236,0.00784703,95820.0,95808.0,0.20875]
[1735238335409,0.00784703,95820.0,95816.0,0.208731]
[1735238335616,0.208712,95826.0,95810.0,0.208746]
[1735238336065,0.208715,95824.0,95810.0,0.208746]
[1735238336445,0.208725,95820.0,95808.0,0.20875]
[1735238336619,0.05292763,95819.0,95808.0,0.20875]